[Event "*** Titled Tuesday Blitz"]
[Site "Chess.com"]
[Date "2020.04.07"]
[Round "2"]
[White "fireheart92"]
[Black "SONOFHOLYGOD"]
[Result "1-0"]
[WhiteElo "2880"]
[BlackElo "2581"]
[TimeControl "180+1"]
[EndTime "13:20:03 PDT"]
[Termination "fireheart92 won on time"]

1. d4 {[%clk 0:03:00.9]} 1... Nf6 {[%clk 0:02:58.8]} 2. c4 {[%clk 0:03:00.8]}
2... e6 {[%clk 0:02:55.1]} 3. Nc3 {[%clk 0:03:00.6]} 3... d5 {[%clk 0:02:53.5]}
4. Nf3 {[%clk 0:02:57.7]} 4... Be7 {[%clk 0:02:52.6]} 5. Bf4 {[%clk 0:02:57]}
5... O-O {[%clk 0:02:51.9]} 6. a3 {[%clk 0:02:57.1]} 6... b6 {[%clk 0:02:51.4]}
7. Qc2 {[%clk 0:02:54.5]} 7... Bb7 {[%clk 0:02:46.8]} 8. Rd1 {[%clk 0:02:51.3]}
8... Nbd7 {[%clk 0:02:45.2]} 9. cxd5 {[%clk 0:02:49]} 9... exd5 {[%clk
0:02:39.6]} 10. e3 {[%clk 0:02:47.9]} 10... a6 {[%clk 0:02:38.9]} 11. Bd3 {[%clk
0:02:47.2]} 11... c5 {[%clk 0:02:35.4]} 12. Ne5 {[%clk 0:02:26]} 12... cxd4
{[%clk 0:02:03.6]} 13. exd4 {[%clk 0:02:26.9]} 13... b5 {[%clk 0:02:02.8]} 14.
Nxd7 {[%clk 0:02:12.7]} 14... Qxd7 {[%clk 0:02:01.6]} 15. O-O {[%clk 0:02:12.5]}
15... g6 {[%clk 0:01:35.5]} 16. Rfe1 {[%clk 0:02:09.3]} 16... Rac8 {[%clk
0:01:28.9]} 17. h3 {[%clk 0:01:59]} 17... Ne4 {[%clk 0:01:18.2]} 18. Bxe4 {[%clk
0:01:58.4]} 18... dxe4 {[%clk 0:01:19]} 19. d5 {[%clk 0:01:58.9]} 19... b4
{[%clk 0:01:12.2]} 20. axb4 {[%clk 0:01:54.6]} 20... Bxb4 {[%clk 0:01:11.1]} 21.
Qxe4 {[%clk 0:01:51.6]} 21... a5 {[%clk 0:00:34.4]} 22. Bh6 {[%clk 0:01:47.5]}
22... f5 {[%clk 0:00:28.7]} 23. Qe6+ {[%clk 0:01:32.9]} 23... Qxe6 {[%clk
0:00:28.6]} 24. dxe6 {[%clk 0:01:33.8]} 24... Rfd8 {[%clk 0:00:25.5]} 25. Rd7
{[%clk 0:01:33.5]} 25... Be4 {[%clk 0:00:21.4]} 26. Nxe4 {[%clk 0:01:29.6]}
26... fxe4 {[%clk 0:00:21.4]} 27. Rxe4 {[%clk 0:01:27.8]} 27... Re8 {[%clk
0:00:21.2]} 28. Rg7+ {[%clk 0:01:21.1]} 28... Kh8 {[%clk 0:00:21.2]} 29. Rb7
{[%clk 0:01:19.8]} 29... Bd6 {[%clk 0:00:20.9]} 30. g3 {[%clk 0:01:16.3]} 30...
Kg8 {[%clk 0:00:19.8]} 31. Rd4 {[%clk 0:01:15.5]} 31... Be5 {[%clk 0:00:19.1]}
32. Re4 {[%clk 0:01:13.2]} 32... Bf6 {[%clk 0:00:14.4]} 33. Kg2 {[%clk
0:01:12.8]} 33... Rc6 {[%clk 0:00:14.4]} 34. Rf7 {[%clk 0:01:12.1]} 34... Bxb2
{[%clk 0:00:09.6]} 35. Ref4 {[%clk 0:01:09]} 35... Rcc8 {[%clk 0:00:08.7]} 36.
e7 {[%clk 0:01:09.3]} 36... Ba3 {[%clk 0:00:08.4]} 37. Rg7+ {[%clk 0:01:08.5]}
37... Kh8 {[%clk 0:00:08.5]} 38. Rff7 {[%clk 0:01:08.6]} 38... Bb2 {[%clk
0:00:07.7]} 39. Rxh7+ {[%clk 0:01:01.2]} 39... Kg8 {[%clk 0:00:08]} 40. Bd2
{[%clk 0:00:34.6]} 40... a4 {[%clk 0:00:08.2]} 41. Bb4 {[%clk 0:00:34.8]} 41...
Be5 {[%clk 0:00:06.8]} 42. h4 {[%clk 0:00:33.4]} 42... Bb2 {[%clk 0:00:04.2]}
43. g4 {[%clk 0:00:33]} 43... Rb8 {[%clk 0:00:02.7]} 44. Bc5 {[%clk 0:00:32.1]}
44... Rbc8 {[%clk 0:00:02.4]} 45. Bd6 {[%clk 0:00:32.1]} 45... Ra8 {[%clk
0:00:01.7]} 46. Ba3 {[%clk 0:00:30.6]} 46... Bf6 {[%clk 0:00:01.7]} 47. g5
{[%clk 0:00:28.8]} 47... Be5 {[%clk 0:00:01.8]} 48. f4 {[%clk 0:00:28.2]} 48...
Bd4 {[%clk 0:00:02.1]} 49. h5 {[%clk 0:00:28]} 49... gxh5 {[%clk 0:00:02.4]} 50.
f5 {[%clk 0:00:28.4]} 1-0

[Event "*** Titled Tuesday Blitz"]
[Site "Chess.com"]
[Date "2020.04.07"]
[Round "2"]
[White "DoHoChess"]
[Black "sergiochess83"]
[Result "0-1"]
[WhiteElo "2555"]
[BlackElo "2853"]
[TimeControl "180+1"]
[EndTime "13:20:03 PDT"]
[Termination "sergiochess83 won by resignation"]

1. d4 {[%clk 0:02:59.5]} 1... Nf6 {[%clk 0:02:59.5]} 2. c4 {[%clk 0:02:59.4]}
2... e6 {[%clk 0:02:55.8]} 3. g3 {[%clk 0:02:59.4]} 3... c5 {[%clk 0:02:54.9]}
4. Nf3 {[%clk 0:02:59.2]} 4... cxd4 {[%clk 0:02:50.2]} 5. Nxd4 {[%clk
0:03:00.1]} 5... d5 {[%clk 0:02:50.7]} 6. Bg2 {[%clk 0:02:59.9]} 6... e5 {[%clk
0:02:48.7]} 7. Nf3 {[%clk 0:02:59.3]} 7... d4 {[%clk 0:02:48.9]} 8. O-O {[%clk
0:02:57.9]} 8... Nc6 {[%clk 0:02:48.7]} 9. e3 {[%clk 0:02:58.3]} 9... Be7 {[%clk
0:02:44.9]} 10. exd4 {[%clk 0:02:58.5]} 10... exd4 {[%clk 0:02:44.3]} 11. Bf4
{[%clk 0:02:57.6]} 11... Be6 {[%clk 0:02:30]} 12. Ne5 {[%clk 0:02:36.9]} 12...
Rc8 {[%clk 0:02:26.2]} 13. Nxc6 {[%clk 0:02:05.1]} 13... bxc6 {[%clk 0:02:25.5]}
14. Be5 {[%clk 0:02:05.6]} 14... c5 {[%clk 0:02:17.9]} 15. Bb7 {[%clk
0:02:02.8]} 15... O-O {[%clk 0:02:09.3]} 16. Nd2 {[%clk 0:02:00.5]} 16... Nd7
{[%clk 0:01:57]} 17. Bxc8 {[%clk 0:01:56.9]} 17... Qxc8 {[%clk 0:01:57.1]} 18.
Re1 {[%clk 0:01:38.8]} 18... Re8 {[%clk 0:01:24.8]} 19. b3 {[%clk 0:01:24.7]}
19... Bf8 {[%clk 0:01:15.6]} 20. Bf4 {[%clk 0:01:18.9]} 20... h6 {[%clk
0:01:13.7]} 21. Ne4 {[%clk 0:01:16]} 21... Qc6 {[%clk 0:01:12.8]} 22. Qf3 {[%clk
0:01:06.8]} 22... Rc8 {[%clk 0:01:10.9]} 23. Nd2 {[%clk 0:01:04.6]} 23... g5
{[%clk 0:01:02.1]} 24. Be5 {[%clk 0:00:54.9]} 24... Qxf3 {[%clk 0:00:52]} 25.
Nxf3 {[%clk 0:00:53.3]} 25... Bg4 {[%clk 0:00:52.3]} 26. Nxd4 {[%clk 0:00:19.7]}
26... Nxe5 {[%clk 0:00:51.7]} 27. Nb5 {[%clk 0:00:10.9]} 27... Nf3+ {[%clk
0:00:50.8]} 28. Kg2 {[%clk 0:00:11.6]} 28... Nxe1+ {[%clk 0:00:50.9]} 29. Rxe1
{[%clk 0:00:12.5]} 29... a6 {[%clk 0:00:50.1]} 30. Nc3 {[%clk 0:00:12.5]} 30...
Be6 {[%clk 0:00:48.6]} 31. Ne4 {[%clk 0:00:12.2]} 31... Be7 {[%clk 0:00:48]} 32.
h3 {[%clk 0:00:12.5]} 32... Rd8 {[%clk 0:00:47.8]} 33. g4 {[%clk 0:00:13]} 33...
Rd4 {[%clk 0:00:46]} 34. Nc3 {[%clk 0:00:13.2]} 34... Rd3 {[%clk 0:00:43.3]} 35.
Ne4 {[%clk 0:00:13.5]} 35... h5 {[%clk 0:00:40.2]} 36. f3 {[%clk 0:00:13.5]}
36... h4 {[%clk 0:00:37]} 37. Re2 {[%clk 0:00:12.7]} 37... Kg7 {[%clk
0:00:35.9]} 38. Nf2 {[%clk 0:00:12.6]} 38... Rd4 {[%clk 0:00:35.9]} 39. Ne4
{[%clk 0:00:13.5]} 39... Kg6 {[%clk 0:00:34.2]} 40. Nc3 {[%clk 0:00:11.7]} 40...
Bd6 {[%clk 0:00:30.4]} 41. Ne4 {[%clk 0:00:12]} 41... a5 {[%clk 0:00:29.2]} 42.
Nc3 {[%clk 0:00:12.1]} 42... Bf8 {[%clk 0:00:19.2]} 43. Ne4 {[%clk 0:00:12.3]}
43... a4 {[%clk 0:00:18.5]} 44. Nc3 {[%clk 0:00:02.9]} 44... axb3 {[%clk
0:00:18.7]} 45. axb3 {[%clk 0:00:03.8]} 45... Rd3 {[%clk 0:00:19.1]} 46. Rc2
{[%clk 0:00:04.1]} 46... Be7 {[%clk 0:00:16.5]} 47. Kf2 {[%clk 0:00:02.3]} 47...
Bf6 {[%clk 0:00:15.5]} 48. Ne4 {[%clk 0:00:02.2]} 48... Bd4+ {[%clk 0:00:15.7]}
49. Kg2 {[%clk 0:00:02.4]} 49... Rxb3 {[%clk 0:00:15.8]} 50. Nd6 {[%clk
0:00:03]} 50... Rb2 {[%clk 0:00:14.9]} 51. Rxb2 {[%clk 0:00:02.7]} 51... Bxb2
{[%clk 0:00:15.8]} 52. Kf2 {[%clk 0:00:02.8]} 52... Be5 {[%clk 0:00:15.2]} 53.
Ne4 {[%clk 0:00:03.2]} 53... Bd4+ {[%clk 0:00:15.3]} 54. Kg2 {[%clk 0:00:03.1]}
54... Bxc4 {[%clk 0:00:16.2]} 0-1

[Event "*** Titled Tuesday Blitz"]
[Site "Chess.com"]
[Date "2020.04.07"]
[Round "2"]
[White "GMG"]
[Black "ChessicallyInclined"]
[Result "1-0"]
[WhiteElo "2793"]
[BlackElo "2527"]
[TimeControl "180+1"]
[EndTime "13:20:03 PDT"]
[Termination "GMG won by resignation"]

1. d4 {[%clk 0:03:00.9]} 1... Nf6 {[%clk 0:02:58.9]} 2. Bg5 {[%clk 0:03:00.5]}
2... e6 {[%clk 0:02:59]} 3. e3 {[%clk 0:02:59.8]} 3... h6 {[%clk 0:02:59.1]} 4.
Bh4 {[%clk 0:02:57.5]} 4... d5 {[%clk 0:02:59.1]} 5. Nd2 {[%clk 0:02:57]} 5...
Nbd7 {[%clk 0:02:59.1]} 6. Ngf3 {[%clk 0:02:52.1]} 6... Be7 {[%clk 0:02:58.7]}
7. Bd3 {[%clk 0:02:51.5]} 7... c5 {[%clk 0:02:57.6]} 8. c3 {[%clk 0:02:51.3]}
8... b6 {[%clk 0:02:57.2]} 9. a4 {[%clk 0:02:43.2]} 9... Bb7 {[%clk 0:02:56.1]}
10. Ne5 {[%clk 0:02:39.8]} 10... Nxe5 {[%clk 0:02:51.7]} 11. dxe5 {[%clk
0:02:40.7]} 11... Nd7 {[%clk 0:02:51.6]} 12. Bg3 {[%clk 0:02:40.4]} 12... d4
{[%clk 0:02:43]} 13. Be4 {[%clk 0:02:29.8]} 13... Bxe4 {[%clk 0:02:39.6]} 14.
Nxe4 {[%clk 0:02:30.7]} 14... dxe3 {[%clk 0:02:38.5]} 15. fxe3 {[%clk 0:02:29]}
15... Qc7 {[%clk 0:02:36]} 16. Nd6+ {[%clk 0:02:25.5]} 16... Bxd6 {[%clk
0:02:34.9]} 17. exd6 {[%clk 0:02:26.4]} 17... Qc6 {[%clk 0:02:34.9]} 18. O-O
{[%clk 0:02:26.7]} 18... O-O {[%clk 0:02:24.8]} 19. Qd3 {[%clk 0:02:03.4]} 19...
Rae8 {[%clk 0:02:11.9]} 20. Qb5 {[%clk 0:01:50.2]} 20... Qb7 {[%clk 0:02:05.6]}
21. c4 {[%clk 0:01:45.1]} 21... a6 {[%clk 0:01:59.7]} 22. Qb3 {[%clk 0:01:44.7]}
22... Qc6 {[%clk 0:01:58.5]} 23. a5 {[%clk 0:01:43.5]} 23... Rb8 {[%clk
0:01:29]} 24. axb6 {[%clk 0:01:38.9]} 24... Rxb6 {[%clk 0:01:29.9]} 25. Qc2
{[%clk 0:01:39]} 25... Rfb8 {[%clk 0:01:18.3]} 26. Ra2 {[%clk 0:01:39.4]} 26...
R8b7 {[%clk 0:01:12.1]} 27. Rfa1 {[%clk 0:01:35.4]} 27... e5 {[%clk 0:01:09]}
28. Rd1 {[%clk 0:01:31.4]} 28... f6 {[%clk 0:01:05.9]} 29. h4 {[%clk 0:01:19.4]}
29... Nf8 {[%clk 0:01:04.5]} 30. Rd5 {[%clk 0:01:11.6]} 30... Rd7 {[%clk
0:01:02.7]} 31. Ra5 {[%clk 0:01:08.7]} 31... Rxd6 {[%clk 0:01:00.6]} 32. Raxc5
{[%clk 0:01:08]} 32... Qd7 {[%clk 0:01:00.4]} 33. e4 {[%clk 0:01:02.2]} 33...
Ne6 {[%clk 0:00:58.2]} 34. Rxd6 {[%clk 0:00:59.6]} 34... Rxd6 {[%clk 0:00:50.9]}
35. Rd5 {[%clk 0:00:59.6]} 35... Qc6 {[%clk 0:00:46.9]} 36. Bf2 {[%clk
0:00:54.7]} 36... Nf4 {[%clk 0:00:41.6]} 37. Rxd6 {[%clk 0:00:41.2]} 37... Qxd6
{[%clk 0:00:41.5]} 38. c5 {[%clk 0:00:41.6]} 38... Qc6 {[%clk 0:00:33.8]} 39.
Be3 {[%clk 0:00:36.5]} 39... Kf7 {[%clk 0:00:18.4]} 40. Bxf4 {[%clk 0:00:33.2]}
40... exf4 {[%clk 0:00:18.7]} 41. h5 {[%clk 0:00:27.9]} 41... Ke6 {[%clk
0:00:16.2]} 42. Qc4+ {[%clk 0:00:24.3]} 42... Ke5 {[%clk 0:00:16.1]} 43. Kf2
{[%clk 0:00:23.4]} 43... f5 {[%clk 0:00:16]} 44. exf5 {[%clk 0:00:21.9]} 44...
Kxf5 {[%clk 0:00:16.1]} 45. Qd4 {[%clk 0:00:22.4]} 45... Kg5 {[%clk 0:00:13.7]}
46. Qd6 {[%clk 0:00:20.3]} 46... Qe4 {[%clk 0:00:12.6]} 47. c6 {[%clk
0:00:18.4]} 47... Qe3+ {[%clk 0:00:13]} 48. Kf1 {[%clk 0:00:18.8]} 48... Qc1+
{[%clk 0:00:13.8]} 49. Ke2 {[%clk 0:00:18.2]} 49... Qxb2+ {[%clk 0:00:13.5]} 50.
Kd3 {[%clk 0:00:18.7]} 50... Qb3+ {[%clk 0:00:13.8]} 51. Kd4 {[%clk 0:00:18.6]}
51... Qd1+ {[%clk 0:00:13.9]} 52. Kc5 {[%clk 0:00:18.6]} 52... Qg1+ {[%clk
0:00:13.5]} 53. Qd4 {[%clk 0:00:18.4]} 53... Qxg2 {[%clk 0:00:11.7]} 54. c7
{[%clk 0:00:18.4]} 54... Qc2+ {[%clk 0:00:11.4]} 55. Kb6 {[%clk 0:00:18.3]}
55... Qf5 {[%clk 0:00:11]} 56. Qc5 {[%clk 0:00:17.3]} 56... Qxc5+ {[%clk
0:00:11.2]} 57. Kxc5 {[%clk 0:00:18.2]} 57... f3 {[%clk 0:00:11.7]} 58. c8=Q
{[%clk 0:00:18.6]} 58... Kxh5 {[%clk 0:00:11.5]} 59. Qf8 {[%clk 0:00:18.9]}
59... Kg4 {[%clk 0:00:08.3]} 60. Qxg7+ {[%clk 0:00:18.8]} 60... Kh3 {[%clk
0:00:08.9]} 61. Qxh6+ {[%clk 0:00:19.3]} 61... Kg2 {[%clk 0:00:09.4]} 62. Qg5+
{[%clk 0:00:19.8]} 62... Kf1 {[%clk 0:00:09.1]} 63. Qc1+ {[%clk 0:00:18.9]}
63... Kg2 {[%clk 0:00:09.1]} 64. Qg5+ {[%clk 0:00:16.1]} 64... Kf1 {[%clk
0:00:08.1]} 65. Kd4 {[%clk 0:00:13.3]} 65... f2 {[%clk 0:00:08]} 66. Ke3 {[%clk
0:00:12.6]} 1-0

[Event "*** Titled Tuesday Blitz"]
[Site "Chess.com"]
[Date "2020.04.07"]
[Round "2"]
[White "Coiote53"]
[Black "yarosavich"]
[Result "0-1"]
[WhiteElo "2351"]
[BlackElo "2722"]
[TimeControl "180+1"]
[EndTime "13:20:03 PDT"]
[Termination "yarosavich won on time"]

1. e4 {[%clk 0:03:00.9]} 1... c5 {[%clk 0:02:59.5]} 2. Nf3 {[%clk 0:02:57]} 2...
Nc6 {[%clk 0:02:59.7]} 3. Nc3 {[%clk 0:02:56.7]} 3... g6 {[%clk 0:02:57.6]} 4.
d4 {[%clk 0:02:56.7]} 4... cxd4 {[%clk 0:02:58]} 5. Nxd4 {[%clk 0:02:57.6]} 5...
Bg7 {[%clk 0:02:58]} 6. Be3 {[%clk 0:02:58.1]} 6... Nf6 {[%clk 0:02:56.4]} 7.
Bc4 {[%clk 0:02:58.1]} 7... O-O {[%clk 0:02:55.3]} 8. Bb3 {[%clk 0:02:58.2]}
8... d6 {[%clk 0:02:55.5]} 9. f3 {[%clk 0:02:58.7]} 9... Na5 {[%clk 0:02:53.8]}
10. Qd2 {[%clk 0:02:57.6]} 10... Nxb3 {[%clk 0:02:52.4]} 11. axb3 {[%clk
0:02:58.5]} 11... Re8 {[%clk 0:02:48.7]} 12. O-O-O {[%clk 0:02:58]} 12... Bd7
{[%clk 0:02:40.4]} 13. Bh6 {[%clk 0:02:58.3]} 13... Bh8 {[%clk 0:02:34.5]} 14.
h4 {[%clk 0:02:57.5]} 14... Qa5 {[%clk 0:02:16.7]} 15. Kb1 {[%clk 0:02:54.6]}
15... Rac8 {[%clk 0:02:11.9]} 16. g4 {[%clk 0:02:52.8]} 16... Bc6 {[%clk
0:01:19.9]} 17. h5 {[%clk 0:02:50.7]} 17... Nd7 {[%clk 0:01:00.9]} 18. hxg6
{[%clk 0:02:37.4]} 18... fxg6 {[%clk 0:01:01.3]} 19. Qh2 {[%clk 0:02:20.1]}
19... e5 {[%clk 0:00:33.6]} 20. Bg5 {[%clk 0:02:18.2]} 20... Nf8 {[%clk
0:00:28.4]} 21. Nxc6 {[%clk 0:01:56]} 21... bxc6 {[%clk 0:00:28.4]} 22. Rxd6
{[%clk 0:01:55.5]} 22... Qc7 {[%clk 0:00:23.9]} 23. Rhd1 {[%clk 0:01:50.8]}
23... Qf7 {[%clk 0:00:21.5]} 24. Qh3 {[%clk 0:01:40.2]} 24... Rc7 {[%clk
0:00:21.1]} 25. Bh6 {[%clk 0:01:28.7]} 25... Ne6 {[%clk 0:00:20.8]} 26. Be3
{[%clk 0:01:25.5]} 26... Nd4 {[%clk 0:00:19.8]} 27. Bxd4 {[%clk 0:01:20.2]}
27... exd4 {[%clk 0:00:20.7]} 28. Ne2 {[%clk 0:01:12.1]} 28... Be5 {[%clk
0:00:21.2]} 29. R6xd4 {[%clk 0:01:11.5]} 29... Bxd4 {[%clk 0:00:21.6]} 30. Rxd4
{[%clk 0:01:11.3]} 30... Rd7 {[%clk 0:00:19.6]} 31. Qg3 {[%clk 0:01:03.9]} 31...
Red8 {[%clk 0:00:17.2]} 32. Rxd7 {[%clk 0:00:55.9]} 32... Qxd7 {[%clk
0:00:18.1]} 33. Qe5 {[%clk 0:00:49.6]} 33... Qd1+ {[%clk 0:00:14.7]} 34. Nc1
{[%clk 0:00:49.6]} 34... Qxf3 {[%clk 0:00:15.6]} 35. Qe6+ {[%clk 0:00:49.7]}
35... Qf7 {[%clk 0:00:11.6]} 36. Qxc6 {[%clk 0:00:49.3]} 36... Qd7 {[%clk
0:00:12.2]} 37. Qc4+ {[%clk 0:00:48.3]} 37... Kg7 {[%clk 0:00:12.8]} 38. g5
{[%clk 0:00:47.7]} 38... Rc8 {[%clk 0:00:08.6]} 39. Qe2 {[%clk 0:00:44.3]} 39...
Qc7 {[%clk 0:00:08.1]} 40. e5 {[%clk 0:00:42.3]} 40... Qc5 {[%clk 0:00:04.8]}
41. c3 {[%clk 0:00:22]} 41... Re8 {[%clk 0:00:04.7]} 42. Nd3 {[%clk 0:00:14.2]}
42... Qg1+ {[%clk 0:00:05]} 43. Ka2 {[%clk 0:00:14.5]} 43... Qxg5 {[%clk
0:00:05.5]} 44. Qe4 {[%clk 0:00:15.3]} 44... Qe7 {[%clk 0:00:05.8]} 45. Qd4
{[%clk 0:00:14.1]} 45... h5 {[%clk 0:00:04.3]} 46. e6+ {[%clk 0:00:09.1]} 46...
Qf6 {[%clk 0:00:04.5]} 47. Qxa7+ {[%clk 0:00:06.6]} 47... Re7 {[%clk 0:00:04.6]}
48. Qa8 {[%clk 0:00:03.2]} 48... Qxe6 {[%clk 0:00:04.9]} 49. Nb4 {[%clk
0:00:03.2]} 49... Qf7 {[%clk 0:00:04.9]} 50. Qc6 {[%clk 0:00:01.7]} 50... Ra7+
{[%clk 0:00:04.7]} 51. Kb1 {[%clk 0:00:01.1]} 51... Qf5+ {[%clk 0:00:05.3]} 0-1

[Event "*** Titled Tuesday Blitz"]
[Site "Chess.com"]
[Date "2020.04.07"]
[Round "2"]
[White "GOGIEFF"]
[Black "JozefKneht"]
[Result "1-0"]
[WhiteElo "2945"]
[BlackElo "2598"]
[TimeControl "180+1"]
[EndTime "13:20:04 PDT"]
[Termination "GOGIEFF won by resignation"]

1. d4 {[%clk 0:03:00.9]} 1... d5 {[%clk 0:02:59.2]} 2. c4 {[%clk 0:03:00.6]}
2... e6 {[%clk 0:02:59.1]} 3. Nc3 {[%clk 0:02:59.9]} 3... Nf6 {[%clk 0:02:59.6]}
4. cxd5 {[%clk 0:02:59.3]} 4... exd5 {[%clk 0:03:00.5]} 5. Bg5 {[%clk
0:02:59.3]} 5... Be7 {[%clk 0:03:01.4]} 6. e3 {[%clk 0:02:59.6]} 6... O-O {[%clk
0:03:01.5]} 7. Bd3 {[%clk 0:02:58.4]} 7... c6 {[%clk 0:03:02]} 8. Qc2 {[%clk
0:02:56.5]} 8... Nbd7 {[%clk 0:03:02.4]} 9. Nf3 {[%clk 0:02:56.7]} 9... Re8
{[%clk 0:03:03]} 10. O-O {[%clk 0:02:55.8]} 10... Nf8 {[%clk 0:03:03.2]} 11. h3
{[%clk 0:02:56.3]} 11... Be6 {[%clk 0:03:02.2]} 12. Ne5 {[%clk 0:02:52.7]} 12...
N6d7 {[%clk 0:03:01.5]} 13. Bxe7 {[%clk 0:02:52.7]} 13... Rxe7 {[%clk
0:03:02.4]} 14. f4 {[%clk 0:02:52.4]} 14... f6 {[%clk 0:03:02.9]} 15. Nf3 {[%clk
0:02:52]} 15... Qc7 {[%clk 0:02:59]} 16. Rae1 {[%clk 0:02:51.9]} 16... Rae8
{[%clk 0:02:58.6]} 17. g4 {[%clk 0:02:45.8]} 17... a6 {[%clk 0:02:57.8]} 18. Qh2
{[%clk 0:02:26.5]} 18... c5 {[%clk 0:02:56]} 19. f5 {[%clk 0:02:18]} 19... Qxh2+
{[%clk 0:02:53.5]} 20. Nxh2 {[%clk 0:02:18.4]} 20... Bf7 {[%clk 0:02:53.2]} 21.
Kf2 {[%clk 0:02:18.9]} 21... c4 {[%clk 0:02:46.9]} 22. Bc2 {[%clk 0:02:14.5]}
22... b5 {[%clk 0:02:46.9]} 23. a3 {[%clk 0:02:01]} 23... Nb6 {[%clk 0:02:47]}
24. Nf3 {[%clk 0:01:54.9]} 24... Nfd7 {[%clk 0:02:30.5]} 25. e4 {[%clk
0:01:34.9]} 25... Kf8 {[%clk 0:02:20.3]} 26. Nd2 {[%clk 0:01:02.4]} 26... Nb8
{[%clk 0:02:14.2]} 27. exd5 {[%clk 0:00:55.9]} 27... Nxd5 {[%clk 0:02:10.6]} 28.
Rxe7 {[%clk 0:00:52.2]} 28... Rxe7 {[%clk 0:02:09.4]} 29. Be4 {[%clk 0:00:49.4]}
29... Rd7 {[%clk 0:01:49.6]} 30. Bh1 {[%clk 0:00:35.4]} 30... Nc6 {[%clk
0:01:47.1]} 31. Nde4 {[%clk 0:00:34.2]} 31... Nde7 {[%clk 0:01:12.3]} 32. Nc5
{[%clk 0:00:28.1]} 32... Rxd4 {[%clk 0:01:10.9]} 33. Ke3 {[%clk 0:00:28.7]}
33... Rd8 {[%clk 0:01:00.5]} 34. Be4 {[%clk 0:00:27.7]} 34... Ne5 {[%clk
0:00:53.7]} 35. Nxa6 {[%clk 0:00:27.3]} 35... Nd5+ {[%clk 0:00:47.2]} 36. Bxd5
{[%clk 0:00:25.8]} 36... Bxd5 {[%clk 0:00:46.7]} 37. Rd1 {[%clk 0:00:26.3]}
37... Nd3 {[%clk 0:00:41.2]} 38. Nc7 {[%clk 0:00:25.7]} 38... Bf7 {[%clk
0:00:36.5]} 39. N3xb5 {[%clk 0:00:25.2]} 39... g6 {[%clk 0:00:33.8]} 40. a4
{[%clk 0:00:25.2]} 40... gxf5 {[%clk 0:00:33.1]} 41. gxf5 {[%clk 0:00:26.1]}
41... Rb8 {[%clk 0:00:30.4]} 42. Rd2 {[%clk 0:00:25.1]} 42... Be8 {[%clk
0:00:25.3]} 43. Nxe8 {[%clk 0:00:23.8]} 43... Kxe8 {[%clk 0:00:25.6]} 44. Kd4
{[%clk 0:00:24.3]} 44... Ne5 {[%clk 0:00:23.8]} 45. Kc5 {[%clk 0:00:23.3]} 45...
Rc8+ {[%clk 0:00:19.8]} 46. Kb6 {[%clk 0:00:23.4]} 46... Nd7+ {[%clk 0:00:17.2]}
47. Kb7 {[%clk 0:00:20.9]} 47... Rc5 {[%clk 0:00:17.4]} 48. Rd5 {[%clk
0:00:17.7]} 48... Rxd5 {[%clk 0:00:14.7]} 49. Nc7+ {[%clk 0:00:17.7]} 49... Ke7
{[%clk 0:00:15.6]} 50. Nxd5+ {[%clk 0:00:18.6]} 50... Kd6 {[%clk 0:00:16.5]} 51.
Nc3 {[%clk 0:00:18.7]} 51... Nc5+ {[%clk 0:00:14.7]} 52. Kb6 {[%clk 0:00:19]}
52... Nd7+ {[%clk 0:00:14.1]} 53. Kb5 {[%clk 0:00:18.7]} 53... Ke5 {[%clk
0:00:15]} 54. a5 {[%clk 0:00:19.1]} 54... Kxf5 {[%clk 0:00:15.6]} 55. a6 {[%clk
0:00:19.4]} 55... Nf8 {[%clk 0:00:11]} 56. a7 {[%clk 0:00:18.9]} 56... Ne6
{[%clk 0:00:11.7]} 57. Kb6 {[%clk 0:00:18.4]} 1-0

[Event "*** Titled Tuesday Blitz"]
[Site "Chess.com"]
[Date "2020.04.07"]
[Round "2"]
[White "GMHess"]
[Black "Crazy_girl99"]
[Result "1-0"]
[WhiteElo "2768"]
[BlackElo "2513"]
[TimeControl "180+1"]
[EndTime "13:20:04 PDT"]
[Termination "GMHess won by resignation"]

1. b3 {[%clk 0:03:00.8]} 1... d5 {[%clk 0:02:54.6]} 2. Bb2 {[%clk 0:02:55.1]}
2... c5 {[%clk 0:02:43.7]} 3. e3 {[%clk 0:02:48.9]} 3... Nc6 {[%clk 0:02:41.8]}
4. h3 {[%clk 0:02:49.6]} 4... Nf6 {[%clk 0:02:41.9]} 5. d3 {[%clk 0:02:48.5]}
5... e5 {[%clk 0:02:41]} 6. Nd2 {[%clk 0:02:49.3]} 6... Bd6 {[%clk 0:02:41.3]}
7. Ne2 {[%clk 0:02:49.6]} 7... Be6 {[%clk 0:02:41.4]} 8. g4 {[%clk 0:02:50]}
8... Qc7 {[%clk 0:02:40.1]} 9. Bg2 {[%clk 0:02:50.3]} 9... h6 {[%clk 0:02:37.8]}
10. Ng3 {[%clk 0:02:46.7]} 10... O-O-O {[%clk 0:02:37.4]} 11. Nf5 {[%clk
0:02:42.5]} 11... Bxf5 {[%clk 0:02:35.7]} 12. gxf5 {[%clk 0:02:43.4]} 12... Ne7
{[%clk 0:02:36.4]} 13. e4 {[%clk 0:02:33.4]} 13... Rhg8 {[%clk 0:02:35.3]} 14.
Qf3 {[%clk 0:02:24.5]} 14... Kb8 {[%clk 0:02:33.3]} 15. O-O-O {[%clk 0:02:24.2]}
15... d4 {[%clk 0:02:16.7]} 16. Nc4 {[%clk 0:02:24.6]} 16... Nc6 {[%clk
0:02:13]} 17. Nxd6 {[%clk 0:02:17.4]} 17... Rxd6 {[%clk 0:02:08.1]} 18. Bf1
{[%clk 0:02:10.3]} 18... Qa5 {[%clk 0:02:07.9]} 19. a3 {[%clk 0:02:09]} 19... b5
{[%clk 0:02:04.8]} 20. Rg1 {[%clk 0:02:08.9]} 20... Nd7 {[%clk 0:01:51.3]} 21.
Qh5 {[%clk 0:02:00.9]} 21... Nd8 {[%clk 0:01:42.5]} 22. Qh4 {[%clk 0:01:55.9]}
22... f6 {[%clk 0:01:38.4]} 23. Be2 {[%clk 0:01:49.8]} 23... Rc6 {[%clk
0:01:35.6]} 24. f4 {[%clk 0:01:42]} 24... exf4 {[%clk 0:01:30.9]} 25. Qxf4+
{[%clk 0:01:42.9]} 25... Ne5 {[%clk 0:01:31.1]} 26. Rg3 {[%clk 0:01:29]} 26...
Qc7 {[%clk 0:01:30.3]} 27. Kb1 {[%clk 0:01:26]} 27... Re8 {[%clk 0:01:29.9]} 28.
Bh5 {[%clk 0:01:16.3]} 28... Re7 {[%clk 0:01:30]} 29. Qf2 {[%clk 0:01:07.4]}
29... Rd6 {[%clk 0:01:29.2]} 30. Rdg1 {[%clk 0:01:06.1]} 30... Ndc6 {[%clk
0:01:29.1]} 31. Be2 {[%clk 0:00:57.7]} 31... Rdd7 {[%clk 0:01:22.5]} 32. Bc1
{[%clk 0:00:57.1]} 32... Qb6 {[%clk 0:01:19.7]} 33. Bf4 {[%clk 0:00:47.7]} 33...
a5 {[%clk 0:01:19.3]} 34. R1g2 {[%clk 0:00:47]} 34... Ka7 {[%clk 0:01:19]} 35.
Qg1 {[%clk 0:00:47.2]} 35... Qb7 {[%clk 0:01:18.8]} 36. Bc1 {[%clk 0:00:33]}
36... c4 {[%clk 0:01:10.5]} 37. Bb2 {[%clk 0:00:23.8]} 37... Ka8 {[%clk
0:00:40]} 38. bxc4 {[%clk 0:00:12.2]} 38... bxc4 {[%clk 0:00:40]} 39. dxc4
{[%clk 0:00:13.1]} 39... a4 {[%clk 0:00:39]} 40. Kc1 {[%clk 0:00:10]} 40... Na5
{[%clk 0:00:33]} 41. Bxd4 {[%clk 0:00:09.8]} 41... Naxc4 {[%clk 0:00:32.4]} 42.
Bxe5 {[%clk 0:00:05.2]} 42... Nxe5 {[%clk 0:00:29.7]} 43. Qc5 {[%clk 0:00:04.7]}
43... Kb8 {[%clk 0:00:18.5]} 44. Rc3 {[%clk 0:00:03.6]} 44... Rc7 {[%clk
0:00:17.8]} 45. Qd6 {[%clk 0:00:04.2]} 45... Rd7 {[%clk 0:00:16.7]} 46. Rxc7
{[%clk 0:00:04.4]} 46... Rxc7 {[%clk 0:00:16.5]} 47. Rxg7 {[%clk 0:00:03.7]}
47... Nc6 {[%clk 0:00:04.1]} 48. Ba6 {[%clk 0:00:03.6]} 48... Qa7 {[%clk
0:00:03.6]} 49. Rg8+ {[%clk 0:00:03.9]} 1-0